bitfinex-derivatives/quotes_BTCF0:USTF0_20250315
["timestamp","ask_amount","ask_price","bid_price","bid_amount"]
[1742009412344,0.1180739,84694.0,84693.0,0.1180697]
[1742009412536,0.1180795,84688.0,84687.0,0.1180781]
[1742009412736,0.1180795,84688.0,84687.0,0.1507781]
[1742009412951,0.1180795,84688.0,84687.0,0.1507795]
[1742009413140,0.1838795,84688.0,84687.0,0.1507795]
[1742009413949,0.1838795,84688.0,84687.0,0.3807795]
[1742009414446,0.1848795,84688.0,84687.0,0.1507795]
[1742009414649,0.1848795,84688.0,84687.0,0.0327]
[1742009415951,0.1868795,84688.0,84687.0,0.0327]
[1742009417649,0.3829795,84688.0,84687.0,0.0327]
[1742009419548,0.6257,84688.0,84685.0,0.0001772]
[1742009419738,0.6257,84688.0,84676.0,0.21186252]
[1742009419739,0.3141934,84677.0,84676.0,0.21186252]
[1742009419944,0.1180976,84674.0,84671.0,0.0118899]
[1742009420143,0.1181074,84667.0,84666.0,0.47187566]
[1742009420452,0.2367074,84667.0,84666.0,0.36586223]
[1742009420749,0.059055,84665.0,84661.0,0.42313278]
[1742009420946,0.4789143,84662.0,84661.0,0.42313278]
[1742009421943,0.5101143,84662.0,84661.0,0.42313278]
[1742009422353,0.9542143,84662.0,84661.0,0.43495403]
[1742009422548,0.7581143,84662.0,84661.0,0.42313278]
[1742009424847,0.1181185,84659.0,84658.0,0.0001772]
[1742009425643,0.1521185,84659.0,84658.0,0.0001772]
[1742009426144,0.1521185,84659.0,84658.0,0.0011772]
[1742009427247,0.4321185,84659.0,84658.0,0.0011772]
[1742009427448,0.1521185,84659.0,84658.0,0.0011772]
[1742009428749,0.1521185,84659.0,84658.0,0.0336772]
[1742009429147,0.2621185,84659.0,84658.0,0.0336772]
[1742009429352,0.1521185,84659.0,84658.0,0.0336772]
[1742009429549,0.2621185,84659.0,84658.0,0.0336772]
[1742009429744,0.1521185,84659.0,84658.0,0.0336772]
[1742009429945,0.2621185,84659.0,84658.0,0.0336772]
[1742009430146,0.1521185,84659.0,84658.0,0.0336772]
[1742009430844,0.3921185,84659.0,84658.0,0.0336772]
[1742009431153,0.4221185,84659.0,84658.0,0.0336772]
[1742009431347,0.1521185,84659.0,84658.0,0.0336772]
[1742009432458,0.2621185,84659.0,84658.0,0.0336772]
[1742009432753,0.1521185,84659.0,84658.0,0.0336772]
[1742009432945,0.4321185,84659.0,84658.0,0.0336772]
[1742009433148,0.1521185,84659.0,84658.0,0.0336772]
[1742009433653,0.2421185,84659.0,84658.0,0.0336772]
[1742009433848,0.1521185,84659.0,84658.0,0.0336772]
[1742009434048,0.4221185,84659.0,84658.0,0.0336772]
[1742009434249,0.1521185,84659.0,84658.0,0.0336772]
[1742009434447,0.2621185,84659.0,84658.0,0.0336772]
[1742009434750,0.1521185,84659.0,84658.0,0.0336772]
[1742009437053,0.4221185,84659.0,84658.0,0.0336772]
[1742009437359,0.1521185,84659.0,84658.0,0.0336772]
[1742009438550,0.3921185,84659.0,84658.0,0.0336772]
[1742009438752,0.1521185,84659.0,84658.0,0.0336772]
[1742009440859,0.2521185,84659.0,84658.0,0.0336772]
[1742009441161,0.4021185,84659.0,84658.0,0.0336772]
[1742009441359,0.1521185,84659.0,84658.0,0.0336772]
[1742009442651,0.3482185,84659.0,84658.0,0.0336772]
[1742009443460,0.6182185,84659.0,84658.0,0.0336772]
[1742009443656,0.3482185,84659.0,84658.0,0.0336772]
[1742009443858,0.6282185,84659.0,84658.0,0.0336772]
[1742009444061,0.3482185,84659.0,84658.0,0.0336772]
[1742009446161,0.6282185,84659.0,84658.0,0.0336772]
[1742009446356,0.3482185,84659.0,84658.0,0.0336772]
[1742009447367,0.4482185,84659.0,84658.0,0.0336772]
[1742009447667,0.5782185,84659.0,84658.0,0.0336772]
[1742009447877,0.4482185,84659.0,84658.0,0.0336772]
[1742009448070,0.3482185,84659.0,84658.0,0.0336772]
[1742009449164,0.4382185,84659.0,84658.0,0.0336772]
[1742009449472,0.3142185,84659.0,84658.0,0.0336772]
[1742009450466,0.4242185,84659.0,84658.0,0.0336772]
[1742009450672,0.3456185,84659.0,84658.0,0.0336772]
[1742009450871,0.6073185,84659.0,84658.0,0.0336772]
[1742009451073,0.3773185,84659.0,84658.0,0.0336772]
[1742009453161,0.4873185,84659.0,84658.0,0.0336772]
[1742009453363,0.3773185,84659.0,84658.0,0.0336772]
[1742009454371,0.5856185,84659.0,84658.0,0.0336772]
[1742009454568,0.3456185,84659.0,84658.0,0.0336772]
[1742009455270,0.3800185,84659.0,84658.0,0.0336772]
[1742009456067,0.6400185,84659.0,84658.0,0.0336772]
[1742009456373,0.3800185,84659.0,84658.0,0.0336772]
[1742009457378,0.6100185,84659.0,84658.0,0.0336772]
[1742009457676,0.4800185,84659.0,84658.0,0.0336772]
[1742009457877,0.3800185,84659.0,84658.0,0.0336772]
[1742009458175,0.4800185,84659.0,84658.0,0.0336772]
[1742009458675,0.3800185,84659.0,84658.0,0.0336772]
[1742009459075,0.4800185,84659.0,84658.0,0.0336772]
[1742009459467,0.3800185,84659.0,84658.0,0.0336772]
[1742009459878,0.4971385,84659.0,84658.0,0.0336772]
[1742009460077,0.6071385,84659.0,84658.0,0.0336772]
[1742009460278,0.5971385,84659.0,84658.0,0.0336772]
[1742009460480,0.4971385,84659.0,84658.0,0.0336772]
[1742009461571,0.7771385,84659.0,84658.0,0.0336772]
[1742009461770,0.4971385,84659.0,84658.0,0.0336772]
[1742009462182,0.7271385,84659.0,84658.0,0.0336772]
[1742009462379,0.7371385,84659.0,84658.0,0.0336772]
[1742009462680,0.7706385,84659.0,84658.0,0.0336772]
[1742009463378,0.1181311,84650.0,84649.0,0.0324]
[1742009463580,0.8459711,84650.0,84649.0,0.0324]
[1742009464281,0.9104711,84650.0,84649.0,0.0324]
[1742009464470,0.1181353,84647.0,84646.0,0.0321]
[1742009465783,0.1181408,84643.0,84642.0,0.032]
[1742009466080,0.4789408,84643.0,84642.0,0.032]
[1742009466883,0.5432408,84643.0,84642.0,0.032]
[1742009467082,0.6432408,84643.0,84642.0,0.032]
[1742009467484,0.8132408,84643.0,84642.0,0.032]
[1742009467877,0.8032408,84643.0,84642.0,0.032]
[1742009468075,0.8032408,84643.0,84636.0,0.0337]
[1742009468076,0.0590739,84639.0,84636.0,0.01159068]
[1742009468273,0.1171576,84631.0,84630.0,0.0311]
[1742009468476,0.7179576,84631.0,84630.0,0.0311]
[1742009469087,0.7830576,84631.0,84630.0,0.0311]
[1742009469489,0.5430576,84631.0,84630.0,0.04294412]
[1742009469991,0.5440576,84631.0,84630.0,0.04294412]
[1742009470990,0.5450576,84631.0,84630.0,0.04294412]
[1742009472784,0.5450576,84631.0,84630.0,0.07544412]
[1742009473090,0.5450576,84631.0,84630.0,0.19360312]
[1742009473892,0.5450576,84631.0,84630.0,0.44360312]
[1742009474195,0.5450576,84631.0,84630.0,0.19360312]
[1742009474491,0.5450576,84631.0,84630.0,0.07544412]
[1742009475595,0.5450576,84631.0,84630.0,0.19360312]
[1742009476998,0.5450576,84631.0,84630.0,0.43360312]
[1742009477193,0.5450576,84631.0,84630.0,0.19360312]
[1742009478593,0.5450576,84631.0,84630.0,0.42360312]
[1742009478794,0.5124576,84631.0,84630.0,0.47360312]
[1742009478995,0.4799576,84631.0,84630.0,0.75360312]
[1742009479292,0.4799576,84631.0,84630.0,0.45360312]
[1742009479896,0.4799576,84631.0,84630.0,0.19360312]
[1742009480094,0.4799576,84631.0,84630.0,0.43360312]
[1742009480794,0.3628,84631.0,84630.0,0.43360312]
[1742009480988,0.3415231,84650.0,84634.0,0.1181534]
[1742009480989,0.11656,84635.0,84634.0,0.1181534]
[1742009481194,0.11656,84635.0,84634.0,0.7489534]
[1742009481390,0.0001772,84639.0,84638.0,0.1181478]
[1742009481697,0.1181369,84646.0,84645.0,0.1772036]
[1742009481890,0.1181369,84646.0,84645.0,0.6042036]
[1742009482091,0.1181369,84646.0,84645.0,1.3942036]
[1742009482301,0.1181369,84646.0,84645.0,1.1142036]
[1742009482490,0.1181369,84646.0,84645.0,0.8442036]
[1742009482692,0.1181369,84646.0,84645.0,0.8742036]
[1742009483202,0.1181369,84646.0,84645.0,0.8842036]
[1742009483598,0.1181369,84646.0,84645.0,1.1242036]
[1742009483902,0.1181369,84646.0,84645.0,1.1542036]
[1742009484689,0.1181369,84646.0,84645.0,0.2434036]
[1742009484889,0.1181369,84646.0,84645.0,0.4734036]
[1742009485098,0.1181369,84646.0,84645.0,0.4934036]
[1742009485501,0.1181369,84646.0,84645.0,0.2434036]
[1742009485689,0.1181369,84646.0,84645.0,0.4834036]
[1742009485887,0.1181369,84646.0,84645.0,0.4734036]
[1742009486091,0.1181369,84646.0,84645.0,0.5234036]
[1742009486606,0.1181369,84646.0,84645.0,0.5134036]
[1742009488600,0.1181369,84646.0,84645.0,0.5034036]
[1742009488802,0.1181369,84646.0,84645.0,0.4834036]
[1742009489393,0.1181369,84646.0,84645.0,0.4934036]
[1742009489594,0.1181369,84646.0,84645.0,0.5234036]
[1742009490403,0.1181369,84646.0,84645.0,0.5034036]
[1742009490897,0.1181369,84646.0,84645.0,0.4834036]
[1742009491290,0.1181369,84646.0,84645.0,1.0334036]
[1742009491696,0.1181369,84646.0,84645.0,0.4834036]
[1742009492201,0.1181369,84646.0,84645.0,0.7534036]
[1742009492405,0.1181369,84646.0,84645.0,1.0234036]
[1742009492606,0.1771915,84653.0,84652.0,0.1181269]
[1742009492801,0.1771915,84653.0,84652.0,0.8981269]
[1742009493012,0.1771915,84653.0,84652.0,0.9219269]
[1742009493506,0.1771915,84653.0,84652.0,0.4019269]
[1742009493706,0.1771915,84653.0,84652.0,0.6419269]
[1742009493902,0.1771915,84653.0,84652.0,0.4019269]
[1742009494204,0.1771915,84653.0,84652.0,0.9719269]
[1742009494399,0.0590642,84653.0,84652.0,0.1519269]
[1742009494594,0.0001772,84654.0,84653.0,0.1181269]
[1742009494807,0.0001772,84654.0,84653.0,0.9821269]
[1742009495203,0.1181189,84659.0,84658.0,0.1181199]
[1742009495406,0.1181189,84659.0,84658.0,1.2589199]
[1742009495897,0.1181189,84659.0,84658.0,1.30502135]
[1742009496807,0.1211189,84659.0,84658.0,1.30502135]
[1742009497303,0.1251189,84659.0,84658.0,1.30502135]
[1742009499106,0.1251189,84659.0,84658.0,1.33802135]
[1742009500815,0.1251189,84659.0,84658.0,0.82802135]
[1742009501108,0.2231189,84659.0,84658.0,0.44722135]
[1742009502209,0.2231189,84659.0,84658.0,0.19722135]
[1742009502409,0.2231189,84659.0,84658.0,0.47722135]
[1742009502711,0.2231189,84659.0,84658.0,0.19722135]
[1742009504503,0.2231189,84659.0,84658.0,0.46722135]
[1742009504905,0.1908189,84659.0,84658.0,0.46722135]
[1742009505610,0.1908189,84659.0,84658.0,0.70722135]
[1742009506709,0.1908189,84659.0,84658.0,1.06802135]
[1742009507410,0.1908189,84659.0,84658.0,0.81802135]
[1742009507806,0.1908189,84659.0,84658.0,0.83802135]
[1742009508010,0.1908189,84659.0,84658.0,0.55802135]
[1742009508214,0.1908189,84659.0,84658.0,0.82802135]
[1742009508417,0.1908189,84659.0,84658.0,0.55802135]
[1742009508717,0.1908189,84659.0,84658.0,0.83802135]
[1742009508905,0.1908189,84659.0,84658.0,0.82802135]
[1742009509817,0.1908189,84659.0,84658.0,0.55802135]
[1742009510113,0.1908189,84659.0,84658.0,0.80802135]
[1742009510516,0.1908189,84659.0,84658.0,0.82802135]
[1742009511019,0.1908189,84659.0,84658.0,0.79802135]
[1742009512018,0.1908189,84659.0,84658.0,0.55802135]
[1742009512315,0.1908189,84659.0,84658.0,0.83802135]
[1742009512511,0.1908189,84659.0,84658.0,0.81802135]
[1742009512718,0.1908189,84659.0,84658.0,0.82802135]
[1742009512908,0.1908189,84659.0,84658.0,0.78802135]
[1742009513706,0.1908189,84659.0,84658.0,0.55802135]
[1742009514214,0.1908189,84659.0,84658.0,0.83802135]
[1742009514613,0.1908189,84659.0,84658.0,0.55802135]
[1742009514813,0.1908189,84659.0,84658.0,0.82802135]
[1742009515714,0.1908189,84659.0,84658.0,0.80802135]
[1742009516020,0.1908189,84659.0,84658.0,0.55802135]
[1742009516320,0.1908189,84659.0,84658.0,0.78802135]
[1742009516519,0.1908189,84659.0,84658.0,0.80802135]
[1742009518516,0.1251189,84659.0,84658.0,1.29802135]
[1742009518715,0.007,84659.0,84658.0,1.29802135]
[1742009520621,0.1251185,84659.0,84658.0,1.29802135]
[1742009521013,0.1586185,84659.0,84658.0,1.29802135]
[1742009521615,0.1899185,84659.0,84658.0,1.29802135]
[1742009522117,0.1251185,84659.0,84658.0,1.29802135]
[1742009523024,0.007,84659.0,84658.0,1.29802135]
[1742009523816,0.1251185,84659.0,84658.0,1.29802135]
[1742009526724,0.1582185,84659.0,84658.0,1.29802135]
[1742009527113,0.1917185,84659.0,84658.0,1.29802135]
[1742009528527,0.007,84659.0,84658.0,1.29802135]
[1742009528726,0.0590496,84673.0,84666.0,0.1181088]
[1742009528914,0.24726158,84675.0,84674.0,0.1180976]
[1742009529115,0.034,84675.0,84674.0,1.2988976]
[1742009529424,0.034,84675.0,84674.0,1.3934976]
[1742009529620,0.034,84675.0,84674.0,1.1234976]
[1742009529828,0.034,84675.0,84674.0,1.3734976]
[1742009530014,0.034,84675.0,84674.0,1.3034976]
[1742009530214,0.034,84675.0,84674.0,1.3634976]
[1742009530615,0.035,84675.0,84674.0,1.3634976]
[1742009530925,0.035,84675.0,84674.0,1.3934976]
[1742009531125,0.001,84675.0,84674.0,0.8534976]
[1742009531426,0.007,84675.0,84674.0,1.3934976]
[1742009531623,0.0397,84675.0,84674.0,1.3934976]
[1742009532123,0.0729,84675.0,84674.0,1.4134976]
[1742009532427,0.0729,84675.0,84674.0,1.3434976]
[1742009532428,0.0669,84675.0,84674.0,1.3434976]
[1742009532617,0.0669,84675.0,84674.0,1.4034976]
[1742009533015,0.001,84675.0,84674.0,1.4034976]
[1742009533219,0.00177217,84676.0,84675.0,0.1180962]
[1742009533420,0.00177217,84676.0,84675.0,0.8780962]
[1742009533624,0.00177217,84676.0,84675.0,0.9211962]
[1742009534321,0.00177217,84676.0,84675.0,0.6911962]
[1742009534524,0.00177217,84676.0,84675.0,0.9711962]
[1742009534717,0.00277217,84676.0,84675.0,0.9611962]
[1742009535518,0.03637217,84676.0,84675.0,0.9611962]
[1742009536121,0.03637217,84676.0,84675.0,0.9711962]
[1742009536527,0.03637217,84676.0,84675.0,0.9311962]
[1742009537019,0.03637217,84676.0,84675.0,0.9811962]
[1742009538125,0.03637217,84676.0,84675.0,0.4411962]
[1742009538529,0.03637217,84676.0,84675.0,0.6711962]
[1742009538728,0.03637217,84676.0,84675.0,0.9311962]
[1742009539118,0.03637217,84676.0,84675.0,0.9211962]
[1742009539321,0.06987217,84676.0,84675.0,0.9211962]
[1742009539734,0.06987217,84676.0,84675.0,0.9711962]
[1742009540230,0.06987217,84676.0,84675.0,0.9011962]
[1742009541021,0.06987217,84676.0,84675.0,0.9311962]
[1742009541419,0.18796697,84676.0,84675.0,0.4311962]
[1742009541623,0.06987217,84676.0,84675.0,0.9211962]
[1742009541825,0.06987217,84676.0,84675.0,0.4311962]
[1742009542029,0.06987217,84676.0,84675.0,0.9411962]
[1742009542224,0.06987217,84676.0,84675.0,0.4311962]
[1742009542529,0.06987217,84676.0,84675.0,0.9311962]
[1742009542832,0.06987217,84676.0,84675.0,0.4311962]
[1742009543332,0.06987217,84676.0,84675.0,0.9611962]
[1742009544330,0.06987217,84676.0,84675.0,0.4311962]
[1742009544519,0.06987217,84676.0,84675.0,0.9411962]
[1742009545325,0.06987217,84676.0,84675.0,0.6811962]
[1742009545519,0.06987217,84676.0,84675.0,0.6911962]
[1742009545719,0.06987217,84676.0,84675.0,0.4311962]
[1742009546430,0.06987217,84676.0,84675.0,0.8911962]
[1742009547227,0.06887217,84676.0,84675.0,0.9701962]
[1742009547824,0.06887217,84676.0,84675.0,0.9691962]
[1742009548035,0.06887217,84676.0,84675.0,0.9391962]
[1742009548425,0.06887217,84676.0,84675.0,0.8991962]
[1742009548826,0.06887217,84676.0,84675.0,0.9391962]
[1742009549424,0.06887217,84676.0,84675.0,0.9341962]
[1742009549729,0.06887217,84676.0,84675.0,0.9501962]
[1742009550437,0.06887217,84676.0,84675.0,0.9481962]
[1742009552235,0.0671,84676.0,84675.0,0.9481962]
[1742009553332,0.99672,84700.0,84699.0,0.1180627]
[1742009553533,1.11304,84700.0,84699.0,0.3480627]
[1742009553725,1.1147813,84700.0,84699.0,0.1180627]
[1742009554423,1.1177813,84700.0,84699.0,0.1180627]
[1742009554630,0.1180641,84698.0,84697.0,0.1770971]
[1742009554827,0.1180683,84696.0,84695.0,0.1180678]
[1742009555027,0.1180683,84696.0,84691.0,0.0001771]
[1742009555028,0.1180725,84692.0,84691.0,0.0001771]
[1742009555933,0.1873725,84692.0,84691.0,0.0001771]
[1742009556232,0.4373725,84692.0,84691.0,0.01222925]
[1742009556531,0.1883725,84692.0,84691.0,0.01222925]
[1742009556733,0.5501725,84692.0,84691.0,0.01222925]
[1742009556934,0.8101725,84692.0,84691.0,0.01222925]
[1742009557237,0.5501725,84692.0,84691.0,0.01222925]
[1742009557928,0.1893725,84692.0,84691.0,0.01222925]
[1742009558126,0.1893725,84692.0,84691.0,0.13030315]
[1742009558529,0.0713,84692.0,84691.0,0.37030315]
[1742009558733,0.1893725,84692.0,84691.0,0.68950315]
[1742009558934,0.1893725,84692.0,84691.0,0.19950315]
[1742009560137,0.1893725,84692.0,84691.0,0.42950315]
[1742009560534,0.1893725,84692.0,84691.0,0.19950315]
[1742009561440,0.1883725,84692.0,84691.0,0.48150315]
[1742009561635,0.1883725,84692.0,84691.0,0.45150315]
[1742009561831,0.1883725,84692.0,84691.0,0.20150315]
[1742009562542,0.1873725,84692.0,84691.0,0.20350315]
[1742009562932,0.1873725,84692.0,84691.0,0.47350315]
[1742009563133,0.1873725,84692.0,84691.0,0.48150315]
[1742009563442,0.1873725,84692.0,84691.0,0.48350315]
[1742009563833,0.1873725,84692.0,84691.0,0.20350315]
[1742009564034,0.1873725,84692.0,84691.0,0.46350315]
[1742009564444,0.1873725,84692.0,84691.0,0.44350315]
[1742009564647,0.1873725,84692.0,84691.0,0.45350315]
[1742009564835,0.1873725,84692.0,84691.0,0.48350315]
[1742009565031,0.1873725,84692.0,84691.0,0.20350315]
[1742009565238,0.1873725,84692.0,84691.0,0.48350315]
[1742009565948,0.1873725,84692.0,84691.0,0.20350315]
[1742009567234,0.1873725,84692.0,84691.0,0.43350315]
[1742009568348,0.1873725,84692.0,84691.0,0.45350315]
[1742009568551,0.1873725,84692.0,84691.0,0.47350315]
[1742009568740,0.1873725,84692.0,84691.0,0.45350315]
[1742009568936,0.1873725,84692.0,84691.0,0.48350315]
[1742009569648,0.1873725,84692.0,84691.0,0.20350315]
[1742009569840,0.1873725,84692.0,84691.0,0.46350315]
[1742009570242,0.1873725,84692.0,84691.0,0.47350315]
[1742009570547,0.1873725,84692.0,84691.0,0.68350315]
[1742009570850,0.1873725,84692.0,84691.0,0.20350315]
[1742009571050,0.1873725,84692.0,84691.0,0.97350315]
[1742009571248,0.1873725,84692.0,84691.0,0.96350315]
[1742009572040,0.1873725,84692.0,84691.0,0.93350315]
[1742009572245,0.1873725,84692.0,84691.0,0.20350315]
[1742009572546,0.1873725,84692.0,84691.0,0.99950315]
[1742009572741,0.1873725,84692.0,84691.0,1.00350315]
[1742009572949,0.1873725,84692.0,84691.0,0.92350315]
[1742009573141,0.1873725,84692.0,84691.0,0.92150315]
[1742009573548,0.1873725,84692.0,84691.0,0.96350315]
[1742009574053,0.1873725,84692.0,84691.0,0.98350315]
[1742009575547,0.1873725,84692.0,84691.0,0.45350315]
[1742009575948,0.1873725,84692.0,84691.0,0.70350315]
[1742009576249,0.1873725,84692.0,84691.0,0.45350315]
[1742009576448,0.1873725,84692.0,84691.0,0.48350315]
[1742009576650,0.1873725,84692.0,84691.0,0.47150315]
[1742009576854,0.1873725,84692.0,84691.0,0.73350315]
[1742009577049,0.1873725,84692.0,84691.0,0.44350315]
[1742009577356,0.1873725,84692.0,84691.0,0.74350315]
[1742009577751,0.1873725,84692.0,84691.0,0.20350315]
[1742009578051,0.1873725,84692.0,84691.0,0.95350315]
[1742009578251,0.1873725,84692.0,84691.0,0.70350315]
[1742009578951,0.1873725,84692.0,84691.0,0.98350315]
[1742009579156,0.0693,84692.0,84691.0,0.98350315]
[1742009579453,0.1180714,84693.0,84692.0,0.1180725]
[1742009579654,0.1180714,84693.0,84692.0,0.8980725]
[1742009579854,0.1180714,84693.0,84692.0,0.9674725]
[1742009580054,0.1180714,84693.0,84692.0,0.9874725]
[1742009580260,0.1880714,84693.0,84692.0,0.9474725]
[1742009580443,0.1880714,84693.0,84692.0,0.9374725]
[1742009580644,0.1880714,84693.0,84692.0,0.9794725]
[1742009580850,0.1880714,84693.0,84692.0,0.9294725]
[1742009581053,0.07,84693.0,84692.0,0.7904725]
[1742009581248,0.1180671,84696.0,84695.0,0.1770989]
[1742009581557,0.1515669,84696.0,84695.0,0.1770989]
[1742009581745,0.1515669,84696.0,84695.0,0.4470989]
[1742009582154,0.1515669,84696.0,84695.0,0.1770989]
[1742009582349,0.1515669,84696.0,84695.0,0.4720989]
[1742009582549,0.1515669,84696.0,84695.0,0.5030989]
[1742009582964,0.1515669,84696.0,84695.0,0.5040989]
[1742009583350,0.1515669,84696.0,84695.0,0.2440989]
[1742009583561,0.1515669,84696.0,84695.0,0.5140989]
[1742009583750,0.1515669,84696.0,84695.0,0.4740989]
[1742009584155,0.1515669,84696.0,84695.0,0.5140989]
[1742009584453,0.1515669,84696.0,84695.0,0.5040989]
[1742009584656,0.1515669,84696.0,84695.0,0.2440989]
[1742009585159,0.1515669,84696.0,84695.0,0.5040989]
[1742009585749,0.1515669,84696.0,84695.0,0.4740989]
[1742009586754,0.1515669,84696.0,84695.0,0.2440989]
[1742009588153,0.1837669,84696.0,84695.0,0.2440989]
[1742009588353,0.1837669,84696.0,84695.0,0.4940989]
[1742009588661,0.1837669,84696.0,84695.0,0.2440989]
[1742009588860,0.1837669,84696.0,84695.0,0.5240989]
[1742009589261,0.1837669,84696.0,84695.0,0.2440989]
[1742009589655,0.1837669,84696.0,84695.0,0.4730989]
[1742009589856,0.1837669,84696.0,84695.0,0.5140989]
[1742009590155,0.1837669,84696.0,84695.0,0.5240989]
[1742009590469,0.1837669,84696.0,84695.0,0.4940989]
[1742009590951,0.033,84698.0,84697.0,0.1180655]
[1742009591152,0.033,84698.0,84697.0,0.7488655]
[1742009591351,0.00177155,84709.0,84708.0,0.1180502]
[1742009591556,0.23787805,84709.0,84708.0,0.3608]
[1742009592357,0.23787805,84709.0,84708.0,0.4788502]
[1742009592565,0.23787805,84709.0,84708.0,0.5100502]
[1742009592769,0.24087805,84709.0,84708.0,0.5100502]
[1742009592966,0.24087805,84709.0,84708.0,0.392]
[1742009593167,0.24087805,84709.0,84708.0,0.5100502]
[1742009593366,0.24087805,84709.0,84708.0,0.7800502]
[1742009593560,0.24087805,84709.0,84708.0,0.5100502]
[1742009593866,0.27827805,84709.0,84708.0,0.5100502]
[1742009595271,0.27827805,84709.0,84708.0,0.7700502]
[1742009595779,0.27827805,84709.0,84708.0,0.5100502]
[1742009597074,0.27827805,84709.0,84708.0,0.7500502]
[1742009597274,0.27827805,84709.0,84708.0,0.5100502]
[1742009597465,0.27827805,84709.0,84708.0,0.7900502]
[1742009597665,0.27827805,84709.0,84708.0,0.7400502]
[1742009598058,0.27827805,84709.0,84708.0,0.7600502]
[1742009599567,0.27827805,84709.0,84708.0,0.5100502]
[1742009600172,0.27827805,84709.0,84708.0,0.7400502]
[1742009600871,0.27827805,84709.0,84708.0,0.7800502]
[1742009601072,0.27827805,84709.0,84708.0,0.5100502]
[1742009601280,0.27827805,84709.0,84708.0,0.7600502]
[1742009601976,0.27827805,84709.0,84708.0,0.7500502]
[1742009603073,0.27827805,84709.0,84708.0,0.7900502]
[1742009603579,0.27827805,84709.0,84708.0,0.5100502]
[1742009603878,0.27827805,84709.0,84708.0,0.7388502]
[1742009604082,0.27827805,84709.0,84708.0,0.7488502]
[1742009604269,0.27827805,84709.0,84708.0,0.7288502]
[1742009604470,0.27827805,84709.0,84708.0,0.4788502]
[1742009604675,0.27827805,84709.0,84708.0,0.7388502]
[1742009604870,0.16022315,84709.0,84708.0,0.7388502]
[1742009605071,0.16022035,84709.0,84708.0,1.3238502]
[1742009605271,0.16022035,84709.0,84708.0,0.5438502]
[1742009606078,0.16022035,84709.0,84708.0,0.4258]
[1742009606270,0.19152035,84709.0,84708.0,0.4788502]
[1742009606776,0.19152035,84709.0,84708.0,0.5438502]
[1742009610369,0.19152035,84709.0,84708.0,0.8038502]
[1742009610564,0.19152035,84709.0,84708.0,0.7738502]
[1742009610778,0.19152035,84709.0,84708.0,0.8038502]
[1742009610973,0.19152035,84709.0,84708.0,0.5438502]
[1742009611179,0.19152035,84709.0,84708.0,0.7838502]
[1742009611878,0.19152035,84709.0,84708.0,0.7938502]
[1742009612076,0.1897488,84709.0,84708.0,0.5438502]
[1742009614381,0.1897488,84709.0,84708.0,0.8138502]
[1742009614584,0.1897488,84709.0,84708.0,0.8038502]
[1742009614882,0.1897488,84709.0,84708.0,0.7838502]
[1742009615084,0.1897488,84709.0,84708.0,0.8138502]
[1742009615674,0.1897488,84709.0,84708.0,0.5438502]
[1742009616382,0.1897488,84709.0,84708.0,0.8138502]
[1742009617370,0.1897488,84709.0,84708.0,0.7838502]
[1742009618183,0.1897488,84709.0,84708.0,0.5438502]
[1742009618490,0.1897488,84709.0,84708.0,0.7838502]
[1742009619170,0.1897488,84709.0,84708.0,1.0338502]
[1742009619374,0.1897488,84709.0,84708.0,1.0238502]
[1742009619781,0.1897488,84709.0,84708.0,1.1138502]
[1742009620493,0.1897488,84709.0,84708.0,1.0638502]
[1742009620686,0.1897488,84709.0,84708.0,1.0238502]
[1742009620882,0.1897488,84709.0,84708.0,1.0438502]
[1742009621476,0.1897488,84709.0,84708.0,0.7838502]
[1742009622486,0.1897488,84709.0,84708.0,0.7738502]
[1742009623174,0.1897488,84709.0,84708.0,0.8238502]
[1742009623380,0.1897488,84709.0,84708.0,1.0838502]
[1742009623781,0.1897488,84709.0,84708.0,0.8238502]
[1742009623987,0.1897488,84709.0,84708.0,0.7938502]
[1742009624181,0.1897488,84709.0,84708.0,0.8138502]
[1742009624495,0.1897488,84709.0,84708.0,0.8238502]
[1742009624684,0.1877488,84709.0,84708.0,0.8238502]
[1742009624987,0.1877488,84709.0,84708.0,0.7738502]
[1742009625193,0.1877488,84709.0,84708.0,0.7938502]
[1742009625393,0.1877488,84709.0,84708.0,0.5438502]
[1742009625597,0.1877488,84709.0,84708.0,0.7938502]
[1742009625987,0.1847488,84709.0,84708.0,0.5438502]
[1742009626187,0.1857488,84709.0,84708.0,0.8038502]
[1742009626486,0.1857488,84709.0,84708.0,0.8338502]
[1742009627085,0.1857488,84709.0,84708.0,0.5438502]
[1742009629791,0.1857488,84709.0,84708.0,0.065]
[1742009629985,0.1180683,84695.0,84691.0,0.0140003]
[1742009630191,0.1180683,84695.0,84694.0,0.41001252]
[1742009631302,0.1520683,84695.0,84694.0,0.41301252]
[1742009631790,0.4220683,84695.0,84694.0,0.48101252]
[1742009631986,0.5128683,84695.0,84694.0,0.21494282]
[1742009632187,0.6284683,84695.0,84694.0,0.003]
[1742009632600,0.6284683,84695.0,84694.0,0.005]
[1742009632797,0.7384683,84695.0,84694.0,0.005]
[1742009633101,0.9084683,84695.0,84694.0,0.005]
[1742009633302,0.6284683,84695.0,84694.0,0.005]
[1742009633604,0.6284683,84695.0,84694.0,0.003]
[1742009633796,0.8784683,84695.0,84694.0,0.003]
[1742009633996,0.1170725,84692.0,84691.0,0.0140003]
[1742009634705,0.2170725,84692.0,84691.0,0.0140003]
[1742009634888,0.1860725,84692.0,84691.0,0.0140003]
[1742009635089,0.5416725,84692.0,84691.0,0.0160003]
[1742009635291,0.3016725,84692.0,84691.0,0.0160003]
[1742009635694,0.3016725,84692.0,84691.0,0.0170003]
[1742009637198,0.3016725,84692.0,84691.0,0.1350742]
[1742009637400,0.3016725,84692.0,84691.0,0.3850742]
[1742009637700,0.3016725,84692.0,84691.0,0.4050742]
[1742009637902,0.3016725,84692.0,84691.0,0.1350742]
[1742009638095,0.3016725,84692.0,84691.0,0.4469742]
[1742009638304,0.3016725,84692.0,84691.0,0.1669742]
[1742009638712,0.3016725,84692.0,84691.0,0.3969742]
[1742009639002,0.3016725,84692.0,84691.0,0.4169742]
[1742009639208,0.3016725,84692.0,84691.0,0.39520315]
[1742009639506,0.3016725,84692.0,84691.0,0.43520315]
[1742009639804,0.3016725,84692.0,84691.0,0.39520315]
[1742009640000,0.3016725,84692.0,84691.0,0.16520315]
[1742009640393,0.1156,84692.0,84691.0,0.16520315]
[1742009640606,0.1156,84692.0,84691.0,0.42520315]
[1742009640803,0.1156,84692.0,84691.0,0.16520315]
[1742009641003,0.2336725,84692.0,84691.0,0.19870315]
[1742009641197,0.2336725,84692.0,84691.0,0.46870315]
[1742009641392,0.1180686,84695.0,84694.0,0.1180683]
[1742009641698,0.1180686,84695.0,84694.0,0.8480683]
[1742009641899,0.1180686,84695.0,84694.0,0.3880683]
[1742009642095,0.1180686,84695.0,84694.0,0.6580683]
[1742009642300,0.1180686,84695.0,84694.0,0.3780683]
[1742009642602,0.1180686,84695.0,84694.0,0.9180683]
[1742009642907,0.1180686,84695.0,84694.0,0.8580683]
[1742009643312,0.0590248,84710.0,84709.0,0.1180446]